fUST/lending_fUST_20250427
["ID","MTS","AMOUNT","RATE_DAILY","PERIOD"]
[359091181,1745703043287,-400.0,0.00016712,2]
[359091182,1745703043296,-400.0,0.00016712,2]
[359091183,1745703043306,-400.0,0.00016712,2]
[359091184,1745703043316,-400.0,0.00016712,2]
[359091185,1745703043326,-2453.2,0.00016712,2]
[359091186,1745703043335,-400.0,0.00016712,2]
[359091187,1745703043344,-1408.49,0.00016712,2]
[359091188,1745703043354,-400.0,0.00016712,2]
[359091189,1745703043363,-240.13999145,0.00016712,2]
[359091190,1745703043391,-500.0,0.00014411,2]
[359091191,1745703043401,-159.86000855,0.00016712,2]
[359091192,1745703043410,-547.17,0.00016712,2]
[359091193,1745703043420,-799.37427492,0.00016712,2]
[359091194,1745703043445,-500.0,0.00014411,2]
[359091195,1745703043455,-270.25572508,0.00016712,2]
[359091196,1745703043467,-400.0,0.00016712,2]
[359091197,1745703043477,-400.0,0.00016712,2]
[359091198,1745703043486,-400.0,0.00016712,2]
[359091199,1745703043495,-400.0,0.00016712,2]
[359091200,1745703043505,-400.0,0.00016712,2]
[359091201,1745703043514,-371.72358781,0.00016712,2]
[359091202,1745703043524,-400.0,0.00016712,2]
[359091203,1745703043533,-528.48,0.00016712,2]
[359091204,1745703043543,-691.26,0.00016712,2]
[359091205,1745703043552,-1281.68,0.00016712,2]
[359091206,1745703043561,-400.0,0.00016712,2]
[359091207,1745703043570,-400.0,0.00016712,2]
[359091208,1745703043580,-1275.47,0.00016712,2]
[359091209,1745703043589,-400.0,0.00016712,2]
[359091210,1745703043599,-400.0,0.00016712,2]
[359091211,1745703043609,-138.07540747,0.00016712,2]
[359091212,1745703043953,-500.0,0.00014411,2]
[359091213,1745703043963,-500.0,0.00014411,2]
[359091214,1745703043972,-500.0,0.00014411,2]
[359091215,1745703043982,-500.0,0.00014411,2]
[359091216,1745703043994,-500.0,0.00014411,2]
[359091217,1745703044003,-500.0,0.00014411,2]
[359091218,1745703044014,-500.0,0.00014411,2]
[359091219,1745703044023,-500.0,0.00014411,2]
[359091220,1745703044033,-500.0,0.00014411,2]
[359091221,1745703044044,-500.0,0.00014411,2]
[359091222,1745703044053,-500.0,0.00014411,2]
[359091223,1745703044063,-500.0,0.00014411,2]
[359091224,1745703044073,-500.0,0.00014411,2]
[359091225,1745703044083,-500.0,0.00014411,2]
[359091226,1745703044094,-500.0,0.00014411,2]
[359091227,1745703044104,-500.0,0.00014411,2]
[359091228,1745703044114,-500.0,0.00014411,2]
[359091229,1745703044124,-500.0,0.00014411,2]
[359091230,1745703044134,-500.0,0.00014411,2]
[359091231,1745703044144,-500.0,0.00014411,2]
[359091232,1745703044155,-500.0,0.00014411,2]
[359091233,1745703044165,-607.75620147,0.00014411,2]
[359091234,1745703044175,-500.0,0.00014411,2]
[359091235,1745703044189,-500.0,0.00014411,2]
[359091236,1745703044199,-373.28459253,0.00016712,2]
[359091237,1745703044208,-400.0,0.00016712,2]
[359091238,1745703044219,-400.0,0.00016712,2]
[359091239,1745703044228,-400.0,0.00016712,2]
[359091240,1745703044237,-577.9,0.00016712,2]
[359091241,1745703044247,-300.0,0.00016712,2]
[359091242,1745703044258,-1440.26,0.00016712,2]
[359091243,1745703044267,-484.51,0.00016712,2]
[359091244,1745703044277,-400.0,0.00016712,2]
[359091245,1745703044286,-400.0,0.00016712,2]
[359091246,1745703044296,-1276.91,0.00016712,2]
[359091247,1745703044306,-400.0,0.00016712,2]
[359091248,1745703044316,-400.0,0.00016712,2]
[359091249,1745703044326,-405.72,0.00016712,2]
[359091250,1745703044335,-400.0,0.00016712,2]
[359091251,1745703044345,-439.46,0.00016712,2]
[359091252,1745703044356,-475.44125179,0.00016712,2]
[359091253,1745703044366,-400.0,0.00016712,2]
[359091254,1745703044378,-400.0,0.00016712,2]
[359091255,1745703044389,-457.77227117,0.00016712,2]
[359091256,1745703044399,-595.96,0.00016712,2]
[359091257,1745703044410,-400.0,0.00016712,2]
[359091258,1745703044421,-400.0,0.00016712,2]
[359091259,1745703044431,-942.67,0.00016712,2]
[359091260,1745703044441,-400.0,0.00016712,2]
[359091261,1745703044451,-400.0,0.00016712,2]
[359091262,1745703044462,-400.0,0.00016712,2]
[359091263,1745703044472,-400.0,0.00016712,2]
[359091264,1745703044483,-1408.24,0.00016712,2]
[359091265,1745703044494,-500.0,0.00016773,2]
[359091266,1745703044504,-500.0,0.00016773,2]
[359091267,1745703044514,-500.0,0.00016773,2]
[359091268,1745703044524,-500.0,0.00016773,2]
[359091269,1745703044534,-504.83669516,0.00016773,2]
[359091270,1745703044543,-500.0,0.00016773,2]
[359091271,1745703044553,-500.0,0.00016773,2]
[359091272,1745703044562,-500.0,0.00016773,2]
[359091273,1745703044571,-500.0,0.00016773,2]
[359091274,1745703044581,-500.0,0.00016773,2]
[359091275,1745703044591,-5285.77016353,0.00016873,2]
[359091276,1745703044601,-160.0,0.00016972,3]
[359091277,1745703044610,-840.35238838,0.00016972,3]
[359091278,1745703044619,-501.55539689,0.00016973,2]
[359091279,1745703044629,-502.46728034,0.00016973,2]
[359091280,1745703044639,-536.5221806,0.00016973,2]
[359091281,1745703044651,-500.0,0.00016973,2]
[359091282,1745703044661,-500.0,0.00016973,2]
[359091283,1745703044670,-500.0,0.00016973,2]
[359091284,1745703044681,-426.99220634,0.00016973,2]
[359091285,1745703044694,-300.0,0.00016986,2]
[359091286,1745703044705,-400.0,0.00016986,2]
[359091287,1745703044716,-400.0,0.00016986,2]
[359091288,1745703044726,-400.0,0.00016986,2]
[359091289,1745703044911,-304.17996809,0.00016986,2]
[359091290,1745703044921,-200.0,0.00016986,2]
[359091291,1745703044931,-400.0,0.00016986,2]
[359091292,1745703044941,-400.0,0.00016986,2]
[359091293,1745703044951,-400.0,0.00016986,2]
[359091294,1745703044961,-400.0,0.00016986,2]
[359091295,1745703044971,-421.16,0.00016986,2]
[359091296,1745703044981,-400.0,0.00016986,2]
[359091297,1745703044991,-400.0,0.00016986,2]
[359091298,1745703045000,-400.0,0.00016986,2]
[359091299,1745703045010,-487.17226963,0.00016986,2]
[359091300,1745703045020,-400.0,0.00016986,2]
[359091301,1745703045030,-483.32791575,0.00016986,2]
[359091302,1745703045040,-400.0,0.00016986,2]
[359091303,1745703045050,-400.0,0.00016986,2]
[359091304,1745703045060,-400.0,0.00016986,2]
[359091305,1745703045070,-400.0,0.00016986,2]
[359091306,1745703045080,-400.0,0.00016986,2]
[359091307,1745703045090,-400.0,0.00016986,2]
[359091308,1745703045100,-400.0,0.00016986,2]
[359091309,1745703045109,-400.0,0.00016986,2]
[359091310,1745703045119,-400.0,0.00016986,2]
[359091311,1745703045129,-400.0,0.00016986,2]
[359091312,1745703045138,-400.0,0.00016986,2]
[359091313,1745703045148,-400.0,0.00016986,2]
[359091314,1745703045159,-400.0,0.00016986,2]
[359091315,1745703045169,-901.5,0.00016986,2]
[359091316,1745703045181,-504.21,0.00016986,2]
[359091317,1745703045192,-400.0,0.00016986,2]
[359091318,1745703045203,-400.0,0.00016986,2]
[359091320,1745703045213,-400.0,0.00016986,2]
[359091321,1745703045223,-447.58,0.00016986,2]
[359091322,1745703045233,-478.97,0.00016986,2]
[359091323,1745703045243,-400.0,0.00016986,2]
[359091324,1745703045253,-400.0,0.00016986,2]
[359091325,1745703045263,-400.0,0.00016986,2]
[359091326,1745703045275,-300.0,0.00016986,2]
[359091327,1745703045285,-400.0,0.00016986,2]
[359091328,1745703045294,-400.0,0.00016986,2]
[359091329,1745703045304,-400.0,0.00016986,2]
[359091330,1745703045315,-400.0,0.00016986,2]
[359091332,1745703045325,-400.0,0.00016986,2]
[359091333,1745703045334,-804.98,0.00016986,2]
[359091334,1745703045344,-400.0,0.00016986,2]
[359091335,1745703045353,-413.03,0.00016986,2]
[359091336,1745703045363,-400.0,0.00016986,2]
[359091337,1745703045374,-559.15,0.00016986,2]
[359091338,1745703045384,-400.0,0.00016986,2]
[359091339,1745703045394,-400.0,0.00016986,2]
[359091340,1745703045404,-400.0,0.00016986,2]
[359091341,1745703045414,-400.0,0.00016986,2]
[359091342,1745703045424,-452.4,0.00016986,2]
[359091343,1745703045435,-300.0,0.00016986,2]
[359091344,1745703045445,-400.0,0.00016986,2]
[359091345,1745703045455,-465.08,0.00016986,2]
[359091346,1745703045466,-400.0,0.00016986,2]
[359091347,1745703045476,-400.0,0.00016986,2]
[359091348,1745703045486,-431.46,0.00016986,2]
[359091349,1745703045496,-400.0,0.00016986,2]
[359091350,1745703045506,-400.0,0.00016986,2]
[359091351,1745703045516,-1118.65,0.00016986,2]
[359091352,1745703045526,-1226.42,0.00016986,2]
[359091353,1745703045535,-400.0,0.00016986,2]
[359091354,1745703045545,-400.0,0.00016986,2]
[359091355,1745703045554,-400.0,0.00016986,2]
[359091356,1745703045564,-400.0,0.00016986,2]
[359091357,1745703045575,-400.0,0.00016986,2]
[359091358,1745703045585,-400.0,0.00016986,2]
[359091359,1745703045595,-400.0,0.00016986,2]
[359091360,1745703045605,-400.0,0.00016986,2]
[359091361,1745703045614,-1156.24,0.00016986,2]
[359091362,1745703045623,-400.0,0.00016986,2]
[359091363,1745703045633,-400.0,0.00016986,2]
[359091364,1745703045643,-1450.33,0.00016986,2]
[359091365,1745703045653,-600.8,0.00016986,2]
[359091366,1745703045662,-400.0,0.00016986,2]
[359091367,1745703045671,-400.0,0.00016986,2]
[359091368,1745703045681,-699.23,0.00016986,2]
[359091369,1745703045692,-413.26,0.00016986,2]
[359091370,1745703045702,-2041.14,0.00016986,2]
[359091371,1745703045713,-400.0,0.00016986,2]
[359091372,1745703045722,-400.0,0.00016986,2]
[359091373,1745703045731,-468.11,0.00016986,2]
[359091374,1745703045741,-400.0,0.00016986,2]
[359091375,1745703045751,-400.0,0.00016986,2]
[359091376,1745703045762,-400.0,0.00016986,2]
[359091377,1745703045772,-400.0,0.00016986,2]
[359091378,1745703045783,-400.0,0.00016986,2]
[359091379,1745703045796,-400.0,0.00016986,2]
[359091380,1745703045807,-400.0,0.00016986,2]
[359091381,1745703045817,-824.92,0.00016986,2]
[359091382,1745703045827,-467.68,0.00016986,2]
[359091383,1745703045838,-400.0,0.00016986,2]
[359091384,1745703045849,-400.0,0.00016986,2]
[359091385,1745703045859,-400.0,0.00016986,2]
[359091386,1745703045869,-2453.2,0.00016986,2]
[359091387,1745703045879,-400.0,0.00016986,2]
[359091388,1745703045888,-1408.49,0.00016986,2]
[359091389,1745703045898,-400.0,0.00016986,2]
[359091390,1745703045908,-400.0,0.00016986,2]
[359091391,1745703045918,-547.17,0.00016986,2]
[359091392,1745703045927,-1069.63,0.00016986,2]
[359091393,1745703045937,-400.0,0.00016986,2]
[359091394,1745703045946,-400.0,0.00016986,2]
[359091395,1745703045956,-389.35382038,0.00016986,2]
[359091396,1745703045966,-400.0,0.00016986,2]
[359091397,1745703045975,-400.0,0.00016986,2]
[359091398,1745703045985,-400.0,0.00016986,2]
[359091399,1745703045994,-528.48,0.00016986,2]
[359091400,1745703046004,-691.26,0.00016986,2]
[359091401,1745703046014,-1281.68,0.00016986,2]
[359091402,1745703046023,-400.0,0.00016986,2]
[359091403,1745703046033,-400.0,0.00016986,2]
[359091404,1745703046042,-1275.47,0.00016986,2]
[359091405,1745703046051,-400.0,0.00016986,2]
[359091406,1745703046060,-400.0,0.00016986,2]
[359091407,1745703046070,-511.36,0.00016986,2]
[359091408,1745703046079,-400.0,0.00016986,2]
[359091409,1745703046089,-400.0,0.00016986,2]
[359091410,1745703046099,-400.0,0.00016986,2]
[359091411,1745703046109,-577.9,0.00016986,2]
[359091412,1745703046119,-484.51,0.00016986,2]
[359091413,1745703046129,-1440.26,0.00016986,2]
[359091414,1745703046138,-400.0,0.00016986,2]
[359091415,1745703046148,-400.0,0.00016986,2]
[359091416,1745703046158,-1276.91,0.00016986,2]
[359091417,1745703046167,-400.0,0.00016986,2]
[359091418,1745703046177,-414.01,0.00016986,2]
[359091419,1745703046188,-405.72,0.00016986,2]
[359091420,1745703046198,-400.0,0.00016986,2]
[359091421,1745703046207,-439.46,0.00016986,2]
[359091422,1745703046216,-400.0,0.00016986,2]
[359091423,1745703046226,-400.0,0.00016986,2]
[359091424,1745703046235,-595.96,0.00016986,2]
[359091425,1745703046245,-400.0,0.00016986,2]
[359091426,1745703046255,-400.0,0.00016986,2]
[359091427,1745703046264,-942.67,0.00016986,2]
[359091428,1745703046273,-268.33440638,0.00016986,2]
[359091429,1745703046282,-400.0,0.00016986,2]
[359091430,1745703046290,-400.0,0.00016986,2]
[359091431,1745703046299,-400.0,0.00016986,2]
[359091432,1745703046309,-1408.24,0.00016986,2]
[359091433,1745703046319,-151.0,0.00017048,2]
[359091434,1745703046328,-207.4,0.00017048,2]
[359091435,1745703046338,-587.0,0.00017173,2]
[359091436,1745703046347,-211.5835459,0.00017218,2]
[359091437,1745703046357,-400.0,0.0001726,2]
[359091438,1745703046366,-400.0,0.0001726,2]
[359091439,1745703046375,-73.55348266,0.0001726,2]
[359091440,1745703046537,-326.44651734,0.0001726,2]
[359091441,1745703046552,-400.0,0.0001726,2]
[359091442,1745703046567,-400.0,0.0001726,2]
[359091443,1745703046580,-400.0,0.0001726,2]
[359091444,1745703046594,-400.0,0.0001726,2]
[359091445,1745703046606,-421.16,0.0001726,2]
[359091446,1745703046617,-400.0,0.0001726,2]
[359091447,1745703046629,-400.0,0.0001726,2]
[359091448,1745703046642,-400.0,0.0001726,2]
[359091449,1745703046655,-410.23,0.0001726,2]
[359091450,1745703046668,-400.0,0.0001726,2]
[359091451,1745703046682,-400.0,0.0001726,2]
[359091452,1745703046695,-500.0,0.0001726,2]
[359091453,1745703046709,-400.0,0.0001726,2]
[359091454,1745703046721,-400.0,0.0001726,2]
[359091455,1745703046735,-400.0,0.0001726,2]
[359091456,1745703046748,-500.0,0.0001726,2]
[359091457,1745703046762,-400.0,0.0001726,2]
[359091458,1745703046774,-161.73173733,0.0001726,2]
[359091459,1745703046789,-238.26826267,0.0001726,2]
[359091460,1745703046802,-400.0,0.0001726,2]
[359091461,1745703046815,-172.00339827,0.0001726,2]
[359091462,1745703046830,-227.99660173,0.0001726,2]
[359091463,1745703046843,-400.0,0.0001726,2]
[359091464,1745703046857,-737.29338409,0.0001726,2]
[359091465,1745703046934,-164.20661591,0.0001726,2]
[359091466,1745703046948,-504.21,0.0001726,2]
[359091467,1745703046961,-400.0,0.0001726,2]
[359091468,1745703046974,-400.0,0.0001726,2]
[359091469,1745703046988,-400.0,0.0001726,2]
[359091470,1745703047000,-447.58,0.0001726,2]
[359091471,1745703047014,-478.97,0.0001726,2]
[359091472,1745703047027,-400.0,0.0001726,2]
[359091473,1745703047041,-500.0,0.0001726,2]
[359091474,1745703047055,-500.0,0.0001726,2]
[359091475,1745703047069,-400.0,0.0001726,2]
[359091476,1745703047080,-804.98,0.0001726,2]
[359091477,1745703047092,-400.0,0.0001726,2]
[359091478,1745703047102,-413.03,0.0001726,2]
[359091479,1745703047113,-400.0,0.0001726,2]
[359091480,1745703047125,-559.15,0.0001726,2]
[359091481,1745703047137,-400.0,0.0001726,2]
[359091482,1745703047151,-400.0,0.0001726,2]
[359091483,1745703047165,-400.0,0.0001726,2]
[359091484,1745703047179,-400.0,0.0001726,2]
[359091485,1745703047191,-452.4,0.0001726,2]
[359091486,1745703047202,-400.0,0.0001726,2]
[359091487,1745703047213,-465.08,0.0001726,2]
[359091488,1745703047225,-400.0,0.0001726,2]
[359091489,1745703047237,-400.0,0.0001726,2]
[359091490,1745703047250,-431.46,0.0001726,2]
[359091491,1745703047262,-400.0,0.0001726,2]
[359091492,1745703047275,-400.0,0.0001726,2]
[359091493,1745703047285,-1118.65,0.0001726,2]
[359091494,1745703047296,-1226.42,0.0001726,2]
[359091495,1745703047308,-400.0,0.0001726,2]
[359091496,1745703047321,-400.0,0.0001726,2]
[359091497,1745703047333,-400.0,0.0001726,2]
[359091498,1745703047344,-400.0,0.0001726,2]
[359091499,1745703047356,-400.0,0.0001726,2]
[359091500,1745703047368,-400.0,0.0001726,2]
[359091501,1745703047380,-400.0,0.0001726,2]
[359091502,1745703047391,-246.08028566,0.0001726,2]
[359091503,1745703047402,-1156.24,0.0001726,2]
[359091504,1745703047413,-400.0,0.0001726,2]
[359091505,1745703047425,-400.0,0.0001726,2]
[359091506,1745703047437,-1450.33,0.0001726,2]
[359091507,1745703047448,-600.8,0.0001726,2]
[359091508,1745703047460,-400.0,0.0001726,2]
[359091509,1745703047472,-400.0,0.0001726,2]
[359091510,1745703047483,-699.23,0.0001726,2]
[359091511,1745703047495,-413.26,0.0001726,2]
[359091512,1745703047507,-2041.14,0.0001726,2]
[359091513,1745703047518,-400.0,0.0001726,2]
[359091514,1745703047530,-400.0,0.0001726,2]
[359091515,1745703047541,-468.11,0.0001726,2]
[359091516,1745703047553,-400.0,0.0001726,2]
[359091517,1745703047564,-400.0,0.0001726,2]
[359091518,1745703047576,-224.17251696,0.0001726,2]
[359091519,1745703047587,-400.0,0.0001726,2]
[359091520,1745703047599,-400.0,0.0001726,2]
[359091521,1745703047611,-400.0,0.0001726,2]
[359091522,1745703047622,-400.0,0.0001726,2]
[359091523,1745703047634,-824.92,0.0001726,2]
[359091524,1745703047646,-467.68,0.0001726,2]
[359091525,1745703047658,-400.0,0.0001726,2]
[359091526,1745703047669,-400.0,0.0001726,2]
[359091527,1745703047682,-501.77215838,0.0001726,2]
[359091528,1745703047693,-2453.2,0.0001726,2]
[359091529,1745703047705,-400.0,0.0001726,2]
[359091530,1745703047716,-1408.49,0.0001726,2]
[359091531,1745703047728,-400.0,0.0001726,2]
[359091532,1745703047739,-400.0,0.0001726,2]
[359091533,1745703047752,-547.17,0.0001726,2]
[359091534,1745703047763,-1069.63,0.0001726,2]
[359091535,1745703047776,-400.0,0.0001726,2]
[359091536,1745703047788,-400.0,0.0001726,2]
[359091537,1745703047798,-400.0,0.0001726,2]
[359091538,1745703047809,-400.0,0.0001726,2]
[359091539,1745703047821,-400.0,0.0001726,2]
[359091540,1745703047833,-528.48,0.0001726,2]
[359091541,1745703047845,-691.26,0.0001726,2]
[359091542,1745703047856,-1281.68,0.0001726,2]
[359091543,1745703047867,-400.0,0.0001726,2]
[359091544,1745703047879,-506.96793475,0.0001726,2]
[359091545,1745703047891,-1275.47,0.0001726,2]
[359091546,1745703047903,-400.0,0.0001726,2]
[359091547,1745703047914,-400.0,0.0001726,2]
[359091548,1745703047926,-511.36,0.0001726,2]
[359091549,1745703047937,-400.0,0.0001726,2]
[359091550,1745703047949,-400.0,0.0001726,2]
[359091551,1745703047961,-400.0,0.0001726,2]
[359091552,1745703047973,-577.9,0.0001726,2]
[359091553,1745703047984,-484.51,0.0001726,2]
[359091554,1745703047996,-1440.26,0.0001726,2]
[359091555,1745703048007,-400.0,0.0001726,2]
[359091556,1745703048019,-400.0,0.0001726,2]
[359091557,1745703048030,-1276.91,0.0001726,2]
[359091558,1745703048042,-400.0,0.0001726,2]
[359091559,1745703048053,-405.72,0.0001726,2]
[359091560,1745703048066,-500.0,0.0001726,2]
[359091561,1745703048078,-439.46,0.0001726,2]
[359091562,1745703048089,-400.0,0.0001726,2]
[359091563,1745703048101,-400.0,0.0001726,2]
[359091564,1745703048113,-595.96,0.0001726,2]
[359091565,1745703048124,-400.0,0.0001726,2]
[359091566,1745703048136,-400.0,0.0001726,2]
[359091567,1745703048148,-942.67,0.0001726,2]
[359091568,1745703048158,-400.0,0.0001726,2]
[359091569,1745703048169,-400.0,0.0001726,2]
[359091570,1745703048181,-400.0,0.0001726,2]
[359091571,1745703048192,-1408.24,0.0001726,2]
[359091572,1745703048202,-500.0,0.00017273,2]
[359091573,1745703048212,-1534.07759903,0.00017486,2]
[359091574,1745703048222,-400.0,0.00017534,2]
[359091575,1745703048233,-215.86604801,0.00017534,2]
[359091576,1745703048243,-362.11107527,0.00017534,2]
[359091577,1745703048252,-400.0,0.00017534,2]
[359091578,1745703048262,-400.0,0.00017534,2]
[359091579,1745703048272,-400.0,0.00017534,2]
[359091580,1745703048282,-400.0,0.00017534,2]
[359091581,1745703048292,-421.16,0.00017534,2]
[359091582,1745703048303,-400.0,0.00017534,2]
[359091583,1745703048312,-400.0,0.00017534,2]
[359091584,1745703048322,-400.0,0.00017534,2]
[359091585,1745703048331,-400.0,0.00017534,2]
[359091586,1745703048341,-400.0,0.00017534,2]
[359091587,1745703048351,-400.0,0.00017534,2]
[359091588,1745703048360,-400.0,0.00017534,2]
[359091589,1745703048369,-400.0,0.00017534,2]
[359091590,1745703048378,-400.0,0.00017534,2]
[359091591,1745703048388,-400.0,0.00017534,2]
[359091592,1745703048398,-400.0,0.00017534,2]
[359091593,1745703048407,-169.33,0.00017534,2]
[359091594,1745703048417,-345.12106247,0.00017534,2]
[359091595,1745703048427,-901.5,0.00017534,2]
[359091596,1745703048437,-504.21,0.00017534,2]
[359091597,1745703048447,-400.0,0.00017534,2]
[359091598,1745703048457,-152.56141385,0.00017534,2]
[359091599,1745703048467,-400.0,0.00017534,2]
[359091600,1745703048477,-447.58,0.00017534,2]
[359091601,1745703048487,-478.97,0.00017534,2]
[359091602,1745703048497,-400.0,0.00017534,2]
[359091603,1745703048507,-400.0,0.00017534,2]
[359091604,1745703048516,-804.98,0.00017534,2]
[359091605,1745703048526,-400.0,0.00017534,2]
[359091606,1745703048535,-413.03,0.00017534,2]
[359091607,1745703048545,-400.0,0.00017534,2]
[359091608,1745703048844,-559.15,0.00017534,2]
[359091609,1745703048865,-400.0,0.00017534,2]
[359091610,1745703048875,-400.0,0.00017534,2]
[359091611,1745703048886,-400.0,0.00017534,2]
[359091612,1745703048896,-400.0,0.00017534,2]
[359091613,1745703048906,-452.4,0.00017534,2]
[359091614,1745703048915,-400.0,0.00017534,2]
[359091615,1745703048926,-465.08,0.00017534,2]
[359091616,1745703048935,-400.0,0.00017534,2]
[359091617,1745703048946,-400.0,0.00017534,2]
[359091618,1745703048956,-431.46,0.00017534,2]
[359091619,1745703048965,-400.0,0.00017534,2]
[359091620,1745703048975,-400.0,0.00017534,2]
[359091621,1745703048985,-1118.65,0.00017534,2]
[359091622,1745703048995,-1226.42,0.00017534,2]
[359091623,1745703049005,-400.0,0.00017534,2]
[359091624,1745703049015,-400.0,0.00017534,2]
[359091625,1745703049024,-400.0,0.00017534,2]
[359091626,1745703049035,-400.0,0.00017534,2]
[359091627,1745703049045,-400.0,0.00017534,2]
[359091628,1745703049054,-400.0,0.00017534,2]
[359091629,1745703049064,-400.0,0.00017534,2]
[359091630,1745703049074,-1156.24,0.00017534,2]
[359091631,1745703049083,-400.0,0.00017534,2]
[359091632,1745703049094,-400.0,0.00017534,2]
[359091633,1745703049103,-1450.33,0.00017534,2]
[359091634,1745703049112,-600.8,0.00017534,2]
[359091635,1745703049122,-400.0,0.00017534,2]
[359091636,1745703049132,-400.0,0.00017534,2]
[359091637,1745703049142,-699.23,0.00017534,2]
[359091638,1745703049152,-413.26,0.00017534,2]
[359091639,1745703049162,-2041.14,0.00017534,2]
[359091640,1745703049171,-400.0,0.00017534,2]
[359091641,1745703049183,-400.0,0.00017534,2]
[359091642,1745703049192,-468.11,0.00017534,2]
[359091643,1745703049203,-400.0,0.00017534,2]
[359091644,1745703049213,-400.0,0.00017534,2]
[359091645,1745703049222,-400.0,0.00017534,2]
[359091646,1745703049232,-400.0,0.00017534,2]
[359091647,1745703049242,-400.0,0.00017534,2]
[359091648,1745703049252,-400.0,0.00017534,2]
[359091649,1745703049261,-824.92,0.00017534,2]
[359091650,1745703049272,-467.68,0.00017534,2]
[359091651,1745703049281,-400.0,0.00017534,2]
[359091652,1745703049291,-400.0,0.00017534,2]
[359091653,1745703049300,-2453.2,0.00017534,2]
[359091654,1745703049310,-400.0,0.00017534,2]
[359091655,1745703049320,-1408.49,0.00017534,2]
[359091656,1745703049329,-400.0,0.00017534,2]
[359091657,1745703049339,-400.0,0.00017534,2]
[359091658,1745703049349,-547.17,0.00017534,2]
[359091659,1745703049358,-1069.63,0.00017534,2]
[359091660,1745703049368,-400.0,0.00017534,2]
[359091661,1745703049378,-488.58091827,0.00017534,2]
[359091662,1745703049388,-400.0,0.00017534,2]
[359091663,1745703049399,-400.0,0.00017534,2]
[359091664,1745703049408,-400.0,0.00017534,2]
[359091665,1745703049418,-528.48,0.00017534,2]
[359091666,1745703049428,-691.26,0.00017534,2]
[359091667,1745703049437,-1281.68,0.00017534,2]
[359091668,1745703049447,-400.0,0.00017534,2]
[359091669,1745703049457,-1275.47,0.00017534,2]
[359091670,1745703049467,-400.0,0.00017534,2]
[359091671,1745703049477,-400.0,0.00017534,2]
[359091672,1745703049488,-511.36,0.00017534,2]
[359091673,1745703049498,-400.0,0.00017534,2]
[359091674,1745703049509,-400.0,0.00017534,2]
[359091675,1745703049519,-577.9,0.00017534,2]
[359091676,1745703049528,-484.51,0.00017534,2]
[359091677,1745703049538,-1440.26,0.00017534,2]
[359091678,1745703049547,-400.0,0.00017534,2]
[359091679,1745703049557,-1276.91,0.00017534,2]
[359091680,1745703049566,-400.0,0.00017534,2]
[359091681,1745703049577,-405.72,0.00017534,2]
[359091682,1745703049586,-439.46,0.00017534,2]